Cogmind - Beta 14 @@@ ROGUE MODE // 2024.08.09 @ 13:10:12 Player: Heclapar Result: Destroyed by KH-DJQ(R) with Subdweller Machine Gun Performance ------------- Evolutions (0) 0 Regions Visited (2) 400 Robots Destroyed (25) 125 Value Destroyed (635) 635 Prototype IDs (5) 100 Alien Tech Used (0) 0 Bonus (0) 0 TOTAL SCORE: 1260 Bonus ------- None Cogmind --------- Core Integrity 0/250 Matter 270/300 Energy 270/270 System Corruption 0% Temperature Cool (80) Movement Rolling (115) Ox1 Location -10/Subcaves Parts ------- > --- POWER (1+3) ------ Subdweller Power Source (+) Makeshift Power Source > --- PROPULSION (2) --- Compact Wheel Subdweller Monowheel > --- UTILITY (2) ------ Small Storage Unit Power Bank > --- WEAPON (2) ------- Beam Cannon Subdweller Beam Cannon > --- INVENTORY (8) ---- Ion Engine Makeshift Hacking Suite Subdweller Beam Cannon Assault Rifle Battle Rifle Subdweller Machine Gun Subdweller Machine Gun Subdweller Shrapnel Launcher Peak State ------------ > --- POWER ------------ Subdweller Power Source Makeshift Power Source > --- PROPULSION ------- Compact Wheel Subdweller Monowheel > --- UTILITY ---------- Small Storage Unit Power Bank > --- WEAPON ----------- Beam Cannon Subdweller Beam Cannon > --- INVENTORY -------- Ion Engine Small Laser Beam Cannon Assault Rifle Battle Rifle Subdweller Machine Gun Subdweller Shrapnel Launcher [Rating: 23] Favorites ----------- Power Ion Engine Engine Ion Engine Propulsion Aluminum Leg Treads Light Treads Leg Aluminum Leg Wheel Compact Wheel Utility Small Storage Unit Device Improved Heat Sink Storage Small Storage Unit Processor Transport Network Coupler Protection Scrap Shield Weapon Small Laser Energy Gun Small Laser Energy Cannon Beam Cannon Build | -11 -10 -10 ------- Run | Yrd Mat Sub Slots Evolved . | . . . Power . | . . . Propulsion . | . . . Utility . | . . . Weapon . | . . . Parts Attached 18 | . 4 14 Power 2 | . . 2 Engine 2 | . . 2 Core . | . . . Reactor . | . . . Propulsion 4 | . . 4 Treads 2 | . . 2 Leg . | . . . Wheel 2 | . . 2 Hover . | . . . Flight . | . . . Utility 8 | . 4 4 Device 5 | . 3 2 Storage 1 | . . 1 Processor 1 | . 1 . Hackware . | . . . Protection 1 | . . 1 Artifact . | . . . Weapon 4 | . . 4 Energy Gun . | . . . Energy Cannon 4 | . . 4 Ballistic Gun . | . . . Ballistic Cannon . | . . . Launcher . | . . . Special Weapon . | . . . Impact Weapon . | . . . Slashing Weapon . | . . . Piercing Weapon . | . . . Special Melee Weapon . | . . . Unidentified Prototypes 1 | . . 1 Parts Lost 7 | . 1 6 Power 1 | . . 1 Propulsion 4 | . 1 3 Utility 2 | . . 2 Weapon . | . . . Highest Loss Streak 4 | . 1 4 To Critical Strikes 1 | . . 1 Average Slot Usage (%) 88 | . 95 78 Engine 14 | . 14 14 Treads 3 | . . 8 Leg 14 | . 24 1 Wheel 3 | . . 8 Device 11 | . 10 11 Storage 12 | . 14 11 Processor 1 | . 2 . Energy Gun 17 | . 28 2 Energy Cannon 8 | . . 20 Peak Build Rating 23 | . 9 23 Average Rating 10 | . 8 14 On Entrance 6 | 6 6 7 Naked Turns . | . . . Heaviest Build 29 | 12 13 29 Greatest Support 40 | 20 20 40 Greatest Overweight (x) 9 | . 1 9 Average Overweight (x) . | . . . Largest Inventory Capacity 8 | . 8 8 Average Capacity 7 | . 8 7 Most Carried 8 | . 8 8 Average Carried 6 | . 6 6 Final Capacity 8 | 8 8 8 Final Carried 8 | 6 8 8 Class Distribution -------------------- 100% | Mutant Dominant Class ---------------- Mutant | -10/Materials Mutant | -10/Subcaves Resources | -11 -10 -10 ----------- Run | Yrd Mat Sub Matter Collected 340 | 200 40 100 Remotely . | . . . Salvage Created 888 | . 578 310 Parts 46 | . 30 16 Haulers Intercepted 2 | . 2 . Recyclers Shooed 1 | . 1 . Parts Field Recycled . | . . . Retrieved Matter . | . . . Parts Self-Destructed 4 | . . 4 Prevented . | . . . Kills | -11 -10 -10 ------- Run | Yrd Mat Sub Combat Hostiles Destroyed 20 | . 11 9 Guns 13 | . 11 2 Cannons 7 | . . 7 Classes Destroyed 6 | . 5 1 Worker 1 | . 1 . Hauler 2 | . 2 . Watcher 2 | . 2 . Swarmer 6 | . 3 3 Grunt 8 | . 8 . Subdweller 6 | . . 6 Best Kill Streak 3 | . 3 3 Combat Bots Only 3 | . 3 3 Max Kills in Single Turn 1 | . 1 1 Gunslinging . | . . . Exploded . | . . . Melee . | . . . Uniques/NPCs Destroyed . | . . . Combat | -11 -10 -10 -------- Run | Yrd Mat Sub Hostile Shots Fired 123 | . 33 90 Missed 32 | . 7 25 Damage Taken 1379 | . 307 1072 Core 253 | . 52 201 Absorbed by Shields . | . . . Core Remaining (%) 100 | 100 . . Volleys Fired 90 | . 42 48 Largest 2 | . 2 2 Hottest 140 | . 80 140 Shots Fired 176 | . 84 92 Gun 97 | . 84 13 Cannon 79 | . . 79 Launcher . | . . . Special . | . . . Kinetic . | . . . Thermal 176 | . 84 92 Explosive . | . . . Electromagnetic . | . . . Robot Hit Streak 14 | . 13 14 Robot Miss Streak 4 | . 2 4 Penetration Max . | . . . Secondary Targets . | . . . Shots Hit Robots 117 | . 61 56 Core Hits 46 | . 31 15 Critical Kills . | . . . Critical Parts Destroyed . | . . . Critical Strikes . | . . . Melee Attacks . | . . . Impact . | . . . Slashing . | . . . Piercing . | . . . Sneak Attacks . | . . . Combat Hostiles . | . . . Follow-up Attacks . | . . . Damage Inflicted 1775 | . 721 1054 Guns 854 | . 721 133 Cannons 921 | . . 921 Explosions . | . . . Melee . | . . . Ramming . | . . . Kinetic . | . . . Thermal 1775 | . 721 1054 Explosive . | . . . Electromagnetic . | . . . Impact . | . . . Slashing . | . . . Piercing . | . . . Highest Corruption . | . . . Average Corruption . | . . . Corruption Purged . | . . . Corruption Blocked . | . . . Overload Shots . | . . . Overflow Damage . | . . . Projectiles . | . . . Explosions . | . . . Melee . | . . . Knockbacks . | . . . Impact . | . . . Kinetic . | . . . Secondary . | . . . Self-Inflicted Damage . | . . . Shots . | . . . Rammed . | . . . Targets Rammed . | . . . Kicked . | . . . Crushed . | . . . Highest Temperature 252 | . 48 252 Average Temperature 65 | . 13 84 Received Heat Transfer 565 | . 171 394 Siege Activations . | . . . Robots Corrupted . | . . . Combat Hostiles . | . . . Parts Fried . | . . . Impact Corruptions . | . . . Robots Melted . | . . . Combat Hostiles . | . . . Parts Melted 10 | . 5 5 Heat Transferred 3466 | . 1575 1891 Parts Sabotaged . | . . . Parts Stolen . | . . . Parts Stripped . | . . . Power Chain Reactions . | . . . Alert | -11 -10 -10 ------- Run | Yrd Mat Sub Peak Influence 246 | . 246 . Initial . | . . . Average 59 | . 59 . Maximum Alert Level 1 | . 1 . Low Security (%) 96 | . 96 . Level 1 3 | . 3 . Level 2 . | . . . Level 3 . | . . . Level 4 . | . . . Level 5 . | . . . High Security . | . . . Max Security . | . . . Squads Dispatched 1 | . 1 . Investigation 1 | . 1 . Extermination . | . . . Reinforcement . | . . . Assault . | . . . Garrison . | . . . Intercept . | . . . Searches Triggered . | . . . Construction Impeded . | . . . Haulers Reinforced . | . . . Active Scanning Responses . | . . . Cargo Convoy Interrupts . | . . . Stealth | -11 -10 -10 --------- Run | Yrd Mat Sub Distress Signals 3 | . 3 . Communications Jammed . | . . . Distress Signals . | . . . Times Spotted 29 | . 19 10 Peak Tracking Total 3 | . 3 3 Tactical Retreats 3 | . 3 . Traps | -11 -10 -10 ------- Run | Yrd Mat Sub Traps Triggered 1 | . 1 . Indirectly . | . . . Trap Hack Attempts . | . . . Triggered . | . . . Disarmed 1 | . 1 . Reprogrammed . | . . . Reused . | . . . Traps Extracted . | . . . Installed . | . . . Triggered . | . . . Machines | -11 -10 -10 ---------- Run | Yrd Mat Sub Machines Disabled . | . . . Max in Single Turn . | . . . Machines Repaired . | . . . Machines Dismantled . | . . . Machines Sabotaged . | . . . Overloaded Fab Kills . | . . . Hacking | -11 -10 -10 --------- Run | Yrd Mat Sub Machines Accessed 8 | . 8 . Terminals 8 | . 8 . Fabricators . | . . . Repair Stations . | . . . Recycling Units . | . . . Scanalyzers . | . . . Garrison Access . | . . . Total Hacks 26 | . 26 . Successful 13 | . 13 . Failed 13 | . 13 . Catastrophic 2 | . 2 . Database Lockouts . | . . . Manual 22 | . 22 . Terminals 26 | . 26 . Fabricators . | . . . Repair Stations . | . . . Recycling Units . | . . . Scanalyzers . | . . . Garrison Access . | . . . Terminal Hacks 6 | . 6 . Robot Analysis 2 | . 2 . Prototype ID Bank 2 | . 2 . Disarm Traps 1 | . 1 . Zone Layout 1 | . 1 . Fabricator Hacks . | . . . Repair Station Hacks . | . . . Recycling Unit Hacks . | . . . Scanalyzer . | . . . Garrison Access Hacks . | . . . Unauthorized Hacks 7 | . 7 . Terminals 7 | . 7 . Botnet 7 | . 7 . Fabricators . | . . . Repair Stations . | . . . Recycling Units . | . . . Scanalyzers . | . . . Garrison Access . | . . . Data Cores Recovered . | . . . Used . | . . . Hacking Detections 8 | . 8 . Full Trace Events 1 | . 1 . Feedback Events . | . . . Feedback Blocked . | . . . Robot Schematics Acquired . | . . . Robots Built . | . . . Authchips . | . . . Time . | . . . Total Robot Build Rating . | . . . Part Schematics Acquired . | . . . Parts Built . | . . . Authchips . | . . . Time . | . . . Total Part Build Rating . | . . . Parts Repaired . | . . . Time . | . . . Parts Recycled . | . . . Recycled Matter . | . . . Retrieved Matter . | . . . Retrieved Components . | . . . Parts Scanalyzed . | . . . Part Schematics Acquired . | . . . Parts Damaged . | . . . Bothacking | -11 -10 -10 ------------ Run | Yrd Mat Sub Used RIF Installer . | . . . Robots Hacked . | . . . Non-combat . | . . . Combat . | . . . Robot Hacks Applied . | . . . Relay Couplers Released . | . . . Fabnet Peak Effective % . | . . . Robots Rewired . | . . . Allies Hacked . | . . . Hacks Repelled . | . . . Allies | -11 -10 -10 -------- Run | Yrd Mat Sub Total Allies . | . . . Largest Group . | . . . Highest-Rated Group . | . . . Highest-Rated Ally . | . . . Total Orders . | . . . Ally Attacks . | . . . Total Damage . | . . . Kills . | . . . Allies Corrupted . | . . . Allies Melted . | . . . Intel | -11 -10 -10 ------- Run | Yrd Mat Sub Robot Analysis Total 2 | . 2 . Derelict Logs Recovered . | . . . Drone Launches . | . . . Drone Recoveries . | . . . Exploration | -11 -10 -10 ------------- Run | Yrd Mat Sub Turns Passed 2629 | . 1523 1106 Spaces Moved 1245 | 1 589 655 Core 9 | . . 9 Treads 161 | . . 161 Legs 648 | 1 589 58 Wheels 427 | . . 427 Hover . | . . . Flight . | . . . Fastest Speed 105 | 120 120 105 Average Speed 136 | 120 140 134 Slowest Speed 500 | 120 190 500 Overloaded Moves . | . . . Propulsion Burnouts . | . . . Robots Hopped . | . . . Cave-ins Triggered . | . . . Exploration Rate (%) 40 | 2 88 31 Regions Visited 2 Branch Regions 1 Pre-discovered Areas . | . . . Known Exits Taken . | . . . Unknown Exits Taken 2 | 1 1 . Scrap Searched 3 | . . 3 Spaces Dug . | . . . Terrain Destroyed 6 | . . 6 Melee . | . . . Projectile 6 | . . 6 AOE . | . . . Terrain Rammed . | . . . Walls Destroyed . | . . . Machines Disabled . | . . . Actions | -11 -10 -10 --------- Run | Yrd Mat Sub Total 1996 | . 1204 792 Wait 615 | . 560 55 Move 1243 | . 588 655 Hop . | . . . Pick Up 13 | . 4 9 Fast Attach 11 | . 3 8 Attach 3 | . . 3 Detach 2 | . 1 1 Swap 4 | . 1 3 Drop 15 | . 5 10 Fire 90 | . 42 48 Melee . | . . . Ram . | . . . Kick . | . . . Crush . | . . . Escape Stasis . | . . . Rewire . | . . . Trap . | . . . Miscellaneous . | . . . Route ------- -11/Scrapyard -10/Materials (discovered 5 exits: [*Mat x3] / [*Min] / [*Sub]) -10/Subcaves History --------- Turn | Location | Event 1 | -11/Scrapyard | Discovered new exit (range 0) 1 | -11/Scrapyard | Entered Materials 121 | -10/Materials | Discovered new exit (range 16) 312 | -10/Materials | Build established: Mutant 454 | -10/Materials | Discovered new exit (range 8) 1023 | -10/Materials | Discovered new exit (range 9) 1312 | -10/Materials | Discovered new exit (range 14) 1519 | -10/Materials | Discovered new exit (range 4) 1524 | -10/Materials | Entered Subcaves 1640 | -10/Subcaves | Disturbed a concealed Subdweller 1816 | -10/Subcaves | Shifting Twisted Machinery released Sub. Shrapnel Launcher 1817 | -10/Subcaves | Shifting Twisted Machinery released Battle Rifle 1954 | -10/Subcaves | A Subdweller sparked back to life 1954 | -10/Subcaves | A Subdweller sparked back to life 1954 | -10/Subcaves | A Subdweller sparked back to life 1975 | -10/Subcaves | Core integrity fell below 50% 2008 | -10/Subcaves | Found Prototype Device 2008 | -10/Subcaves | Identified Power Bank 2010 | -10/Subcaves | Attached Power Bank, gained temporary slots: Power x3 2027 | -10/Subcaves | Lost 4 parts (2n2u) 2145 | -10/Subcaves | Core integrity fell below 20% 2316 | -10/Subcaves | Shifting Twisted Machinery released Sub. Monowheel 2325 | -10/Subcaves | Shifting Twisted Machinery released Sub. Monowheel 2630 | -10/Subcaves | Destroyed by KH-DJQ(R) with Subdweller Machine Gun Last Messages --------------- 02179_ Flight Unit fries itself beyond repair. 02272_ IL-Q90(O) collects matter. Sub. Monowheel falls loose from the Twisted Machinery. 02318_ Acquired Sub. Machine Gun. Sub. Monowheel falls loose from the Twisted Machinery. 02338_ Acquired Sub. Monowheel. 02464_ Acquired Mak. Power Source. 02477_ Subatomizers dissect the Sub. Optics. 02483_ Dropped Assault Rifle. 02484_ Acquired Sub. Machine Gun. 02485_ Dropped Beam Cannon. 02486_ Acquired Assault Rifle. 02487_ Subatomizers dissect the Sub. Optics. 02510_ Dropped Sml. Laser. 02514_ Acquired Mak. Hacking Suite. 02522_ Sub. Monowheel shoots sparks and powers down. Map ----- +----------------------------------------------------+ | ??????????????????????????# ????# | | ??????????????????????????#### ????? | | ?????????????????????????????## ????? | | ??????????????????????????????###????? | | ???????????????????????????????????### | | ?????????????????????????????####?## | | ?????????????????????????????# ### | | ?????????????????????????????# | | ?????????????????????????????## | | ??????????????????????????????#### # | | ?????????????????????????????????##### | | ???????????????????#?????????????????? | | ??????????????????? ????????????????? | | ??????????????????? ????????????????? | | ??????????????????? ????????????????? | | ??????????????????? ????????????????? | | ??????????????????? ?????????????????? | | ?????????####????## ?????????????????? | | ??????##?"" ###? ????????? ?????? | | ?????## ?? " ### #????????? ?????? | | ?????#" ??" < ## #????????? ?????? | | ????#?" ??? <## #????????? ?????? | | ????#"? ??? <# #????????? ?????? | | ????#" ? ??##R## #????????? #?????? | | ????# ?$$?# #< #????????? #?????? | | ????#" $#$?#@ #????????? ##????? | | ????#" $$$ # #????????? ####?? | | ????#" # # #????###??# ### | | ?????# "" ###< #?#### #### ## | | ?????#" ## ### | | ?????##" " $<<### #?# | | ??????### "<<#### #???## | | ????????#######?# ##### | | ???????????????# ### # | | ???????????????# #?## ## ## | | ???????????????# ??# ### ### | | ???????????????# #?# #?# | | ???????????????# ###?# ## | | ???????????????# #???## # | | ???????????????## ##????## # | | ????????????????# ##??????## | | ???????????????# ## ##????????? # | | ???????????????# #?# #???????????### | | ???????????????###??####?????????????? | | ?????????????????????????????????????? | | ?????????????????????????????????????? | | ?????????????????????????????????????? | | ?????????????????????????????????????? | | ?????????????????????????????????????? | | ?????????????????????????????????????? | +----------------------------------------------------+ Best States ------------- Heat Dissipation 39 Energy Generation 25 Energy Capacity 350 Matter Stores 300 Matter Capacity 300 Sight Range 16 Terrain Scan Range 14 Terrain Scan Density 10 Armor Coverage 800 Evasion (%) 55 Recoil Reduction 2 Item Schematics ----------------- None Robot Schematics ------------------ None Fabricated ------------ Nothing Alien Tech Used ----------------- None Achievements -------------- None Challenges ------------ None Game ------ Seed ExoskeletonExperimentalWeb Manual? 0 Play Time 00:16:08 Cumulative 81.8 hours Start 2024.08.09 @ 12:54:20 End 2024.08.09 @ 13:10:12 Sessions 1 Manual Loads 0 Difficulty Rogue Special Mode None Game No. 97 Rogue 97 Adventurer 0 Explorer 0 Win Type - Total 0 Types 0/0/0/0/0/0/0/0/0 Lore% 41 Gallery% 54 Achievement% 51 Wizard Run 0 Options --------- Layout 1 ASCII 0 Keyboard 0 Movement Mouse Keybinds 0 Fullscreen 1 Font 32/SmallcapsGlow Map View 50x35 Zoom Use 0% Tactical HUD 1 Map Filters NONE Filters NONE Steam 1 RUN: faabce51-8b86-4264-8c38-c6168087f683